bitfinex-derivatives/quotes_ETHF0:USTF0_20250727
["timestamp","ask_amount","ask_price","bid_price","bid_amount"]
[1753613637591,4.00897,3831.1,3831.0,4.27147]
[1753613637798,1.2226,3831.5,3831.4,0.52182]
[1753613637991,0.8483,3832.3,3832.2,0.52171]
[1753613638194,5.2814,3832.3,3832.2,24.4561]
[1753613638499,5.2814,3832.3,3831.4,1.30452]
[1753613638500,1.3237,3832.2,3832.0,0.52173]
[1753613638698,3.3062,3832.1,3832.0,0.52173]
[1753613638897,3.3062,3832.1,3831.9,0.52174]
[1753613638898,0.0984,3832.0,3831.9,0.52174]
[1753613639302,1.3237,3832.0,3831.9,0.52174]
[1753613640208,1.3237,3831.9,3831.7,0.52177]
[1753613640407,0.52174,3832.0,3831.7,0.52177]
[1753613640902,0.52177,3831.8,3831.6,0.52178]
[1753613641106,1.30414,3832.6,3831.6,0.52179]
[1753613641107,3.3062,3831.7,3831.6,0.52179]
[1753613641608,4.5315,3831.7,3831.6,0.52179]
[1753613642002,4.4331,3831.7,3831.6,0.52179]
[1753613642208,3.2078,3831.7,3831.6,4.09879]
[1753613642608,3.2078,3832.1,3832.0,0.52173]
[1753613642808,1.2253,3832.7,3832.2,1.30427]
[1753613643000,3.2078,3832.3,3832.0,29.263]
[1753613643206,3.2078,3832.3,3832.2,1.42461]
[1753613643507,4.4331,3832.3,3832.2,1.42461]
[1753613644103,4.4331,3832.3,3832.2,2.82141]
[1753613644503,4.4331,3832.3,3832.2,1.42461]
[1753613645110,4.4331,3832.3,3832.2,0.9029]
[1753613645609,4.4331,3832.3,3832.2,1.42461]
[1753613647106,3.2078,3832.3,3832.2,4.09871]
[1753613647806,4.4331,3832.3,3832.2,4.09871]
[1753613648513,3.2078,3832.3,3832.2,4.09871]
[1753613649308,3.2078,3832.7,3832.6,0.52165]
[1753613649510,3.2078,3832.7,3832.6,4.09865]
[1753613650204,4.4331,3832.7,3832.6,28.23235]
[1753613650505,0.52168,3832.5,3832.3,0.9029]
[1753613650709,1.2253,3832.4,3832.3,0.9029]
[1753613650904,1.74698,3832.4,3832.3,0.9029]
[1753613651115,1.2253,3832.2,3832.1,25.93171]
[1753613651410,1.2253,3832.2,3831.5,2.70129]
[1753613651411,0.52175,3831.9,3831.5,1.3968]
[1753613651606,4.4331,3831.6,3831.5,0.5218]
[1753613652108,4.4331,3831.6,3831.5,1.4247]
[1753613653206,3.2078,3831.6,3831.5,4.0988]
[1753613655206,4.4331,3831.6,3831.5,4.0988]
[1753613655502,0.52181,3831.5,3831.2,0.52184]
[1753613655812,3.72959,3831.6,3831.3,1.42473]
[1753613656112,1.74712,3831.4,3831.3,0.9029]
[1753613656711,1.74712,3831.4,3830.8,25.215]
[1753613656712,1.74714,3831.3,3830.8,25.215]
[1753613656910,3.2078,3830.9,3830.8,28.411]
[1753613657512,3.2078,3830.9,3830.8,29.3139]
[1753613658211,4.4331,3830.9,3830.8,25.7369]
[1753613658413,4.4331,3830.9,3830.8,25.215]
[1753613658414,4.5315,3830.9,3830.8,25.215]
[1753613658614,5.05338,3830.9,3830.8,25.215]
[1753613658817,4.4331,3830.9,3830.8,26.6398]
[1753613659112,3.2078,3830.9,3830.8,29.3139]
[1753613659422,4.4331,3830.9,3830.8,0.5219]
[1753613659618,4.4331,3830.9,3830.8,1.4248]
[1753613661207,4.4331,3830.9,3830.8,0.9029]
[1753613661412,0.5219,3830.8,3830.7,0.5219]
[1753613661608,3.2078,3830.9,3830.5,25.217]
[1753613661813,3.2078,3830.9,3830.8,4.0989]
[1753613663425,2.24855,3830.9,3830.8,4.0989]
[1753613665630,3.2078,3831.4,3831.3,0.52182]
[1753613665834,4.4331,3831.4,3831.3,0.9029]
[1753613666239,4.95492,3831.4,3831.3,0.9029]
[1753613666534,4.95491,3831.4,3831.3,0.9029]
[1753613667038,4.4331,3831.4,3831.3,0.9029]
[1753613667339,4.95491,3831.4,3831.3,0.9029]
[1753613667538,4.4331,3831.4,3831.3,1.42473]
[1753613668338,4.4331,3831.4,3831.3,0.9029]
[1753613668535,4.4331,3831.4,3831.3,4.18103]
[1753613669435,3.2078,3831.4,3831.3,4.18103]
[1753613670842,4.433,3831.4,3831.3,4.18103]
[1753613671940,4.433,3831.4,3831.3,0.52183]
[1753613672146,0.52184,3831.3,3831.2,0.52183]
[1753613672346,1.74704,3831.3,3831.2,0.52183]
[1753613672545,1.2252,3831.3,3831.2,1.40703]
[1753613672747,1.74703,3831.3,3831.2,0.8852]
[1753613672942,0.0983,3831.3,3831.1,0.52184]
[1753613673146,0.52185,3831.2,3831.1,0.52184]
[1753613673442,0.52186,3831.1,3831.0,0.8852]
[1753613673645,0.0983,3830.9,3830.6,24.5027]
[1753613673949,3.72972,3830.7,3830.6,0.52191]
[1753613674245,3.72972,3830.7,3830.6,1.40711]
[1753613674447,3.2078,3830.7,3830.6,1.40711]
[1753613674644,3.72971,3830.7,3830.6,0.8852]
[1753613675446,3.72971,3830.7,3830.6,1.40712]
[1753613675947,3.72971,3830.7,3830.6,2.82042]
[1753613676346,3.2078,3830.7,3830.6,4.16342]
[1753613682946,3.2078,3830.7,3830.6,6.66752]
[1753613683255,3.2078,3831.1,3831.0,6.66747]
[1753613685054,3.2078,3831.1,3831.0,4.16337]
[1753613686153,3.2078,3831.1,3831.0,2.82037]
[1753613686544,3.2078,3831.1,3831.0,1.40707]
[1753613687556,3.2078,3831.1,3831.0,2.82037]
[1753613688347,3.2078,3831.1,3830.6,1.343]
[1753613688552,3.3063,3830.7,3830.6,0.52192]
[1753613688953,3.72971,3830.7,3830.6,0.52192]
[1753613689151,3.72971,3830.7,3830.6,1.40712]
[1753613689555,3.2078,3830.7,3830.6,1.40712]
[1753613690056,3.72971,3830.7,3830.6,1.40712]
[1753613690263,3.2078,3830.7,3830.6,1.40712]
[1753613690647,3.2078,3830.7,3830.6,2.82042]
[1753613691954,8.2078,3830.7,3829.8,0.19321906]
[1753613692157,3.72982,3829.9,3829.8,9.06e-06]
[1753613692353,3.72982,3829.9,3829.8,0.88520906]
[1753613692657,3.2078,3829.9,3829.8,4.16353906]
[1753613695356,3.2078,3829.9,3829.8,0.88520906]
[1753613695561,3.2078,3829.9,3829.8,4.16353906]
[1753613698265,3.2078,3830.4,3830.0,1.30502]
[1753613698460,0.0009,3830.3,3829.8,9.06e-06]
[1753613698667,3.2078,3829.9,3829.8,0.52203906]
[1753613698862,3.2078,3829.9,3829.8,2.90963906]
[1753613699171,4.5712,3829.9,3829.8,2.90963906]
[1753613699361,1.3634,3829.9,3829.8,2.90963906]
[1753613699561,1.3634,3829.9,3829.8,4.20023906]
[1753613700163,1.3643,3829.9,3829.8,4.20023906]
[1753613700359,1.3634,3829.9,3829.8,4.20023906]
[1753613700567,4.5712,3830.0,3829.9,0.52202]
[1753613700771,4.5712,3830.0,3829.9,4.20022]
[1753613701367,4.5721,3830.0,3829.9,2.90962]
[1753613701761,4.5721,3830.0,3829.9,1.38472]
[1753613702066,4.5721,3830.0,3829.9,2.90962]
[1753613702470,4.5721,3830.0,3829.8,9.06e-06]
[1753613702471,0.52202,3829.9,3829.8,9.06e-06]
[1753613703275,5.52202,3829.9,3829.8,9.06e-06]
[1753613703975,0.52202,3829.9,3829.8,9.06e-06]
[1753613704175,3.2078,3830.0,3829.8,9.06e-06]
[1753613704377,0.52202,3829.9,3829.8,9.06e-06]
[1753613704569,3.2078,3830.0,3829.9,1.38472]
[1753613704570,4.5721,3830.0,3829.9,1.38472]
[1753613704768,4.5721,3830.0,3829.9,2.90962]
[1753613705172,1.3634,3830.0,3829.9,2.90962]
[1753613705477,3.2078,3830.0,3829.9,4.20022]
[1753613707272,3.2078,3830.4,3830.3,4.20017]
[1753613708976,3.2078,3831.0,3830.9,0.52188]
[1753613709276,4.5712,3831.0,3830.9,4.20008]
[1753613709678,3.2078,3831.0,3830.9,4.20008]
[1753613710172,4.5712,3831.0,3830.9,4.20008]
[1753613710872,3.2078,3831.0,3830.9,4.20008]
[1753613711072,1.3634,3831.7,3831.6,0.52179]
[1753613711279,1.3634,3831.7,3831.6,4.19999]
[1753613712478,3.2078,3831.8,3831.3,0.52182]
[1753613712671,3.2078,3831.6,3831.4,0.8627]
[1753613712870,1.3643,3831.5,3831.4,1.38451]
[1753613713066,1.3643,3831.5,3831.4,0.8627]
[1753613713272,1.88611,3831.5,3830.9,1.5249]
[1753613713572,1.3643,3831.4,3831.3,0.8627]
[1753613714076,1.3643,3831.4,3831.3,1.38453]
[1753613714677,1.3643,3831.4,3831.3,2.90943]
[1753613714976,1.3634,3831.4,3831.3,4.20003]
[1753613715874,3.2078,3831.6,3831.5,0.5218]
[1753613716075,4.5712,3831.6,3831.5,4.2]
[1753613717472,3.2078,3831.6,3831.5,4.2]
[1753613717973,3.2078,3831.6,3831.5,6.6921]
[1753613720072,1.3634,3831.9,3831.8,3.07546]
[1753613720382,2.2786,3831.9,3831.8,6.69206]
[1753613720979,0.0009,3832.0,3830.9,2.60943]
[1753613720980,0.0009,3831.7,3831.2,2.1533]
[1753613721281,2.2809,3831.4,3831.3,3.41313]
[1753613721472,4.5712,3831.9,3831.4,3.7827]
[1753613721676,4.1253,3831.9,3831.8,2.12246]
[1753613721883,4.1253,3831.9,3831.8,3.9883]
[1753613722173,0.52178,3831.7,3831.5,2.90939]
[1753613722381,4.1244,3831.9,3831.1,2.59522]
[1753613722382,2.2809,3831.6,3831.2,1.5249]
[1753613722681,1.3643,3831.0,3830.9,0.8627]
[1753613722881,4.5721,3831.0,3830.9,1.38458]
[1753613723074,5.09397,3831.0,3830.9,0.8627]
[1753613723274,4.5721,3831.0,3830.9,0.8627]
[1753613723469,5.09397,3831.0,3830.9,0.8627]
[1753613723680,4.5721,3831.0,3830.9,1.38458]
[1753613724381,4.5712,3831.0,3830.9,4.20008]
[1753613724572,3.2078,3831.4,3831.2,1.5249]
[1753613724778,1.3634,3831.6,3831.5,4.2]
[1753613724973,0.0009,3832.0,3831.9,0.52175]
[1753613725180,3.2078,3832.1,3831.7,0.8627]
[1753613725371,0.52173,3832.0,3831.9,0.52174]
[1753613725575,1.3643,3832.0,3831.9,2.04665]
[1753613726181,1.3643,3832.0,3831.9,2.90935]
[1753613726775,1.3634,3832.0,3831.9,2.90935]
[1753613726972,1.3634,3832.0,3831.9,4.19995]
[1753613727177,1.3634,3832.0,3831.9,2.90935]
[1753613728977,1.88513,3832.0,3831.9,4.29165]
[1753613730181,1.3825,3832.4,3832.0,0.52172]
[1753613730481,1.90423,3832.1,3832.0,6.70492]
[1753613730685,2.2495,3832.1,3832.0,6.70492]
[1753613730888,4.0748,3832.5,3832.4,6.70488]
[1753613731090,3.2078,3832.5,3832.4,6.70488]
[1753613731683,1.3825,3832.7,3832.6,0.52165]
[1753613731884,1.3825,3832.7,3832.6,2.97615]
[1753613732082,1.3825,3832.7,3832.6,6.70485]
[1753613732482,5.4573,3833.0,3832.9,1.08211]
[1753613732682,5.4573,3833.0,3832.9,2.09791]
[1753613732882,5.4573,3833.0,3832.9,4.44431]
[1753613733089,5.9789,3833.0,3832.9,4.44431]
[1753613733285,5.9789,3833.0,3832.9,6.70481]
[1753613733490,5.4573,3833.0,3832.9,6.70481]
[1753613733991,5.9789,3833.0,3832.9,6.70481]
[1753613734193,5.73781759,3833.0,3832.9,6.1832]
[1753613734499,6.25941759,3833.0,3832.9,4.8009]
[1753613736593,6.25941759,3833.0,3832.9,5.32251]
[1753613736987,6.25941759,3833.0,3832.9,1.43351]
[1753613737193,6.25941759,3833.0,3832.9,1.4724]
[1753613737393,6.25941759,3833.0,3832.9,3.42851]
[1753613737594,6.25941759,3833.0,3832.9,6.70481]
[1753613738994,6.25941759,3833.0,3832.9,6.1832]
[1753613739499,6.25941759,3833.0,3832.9,2.86801]
[1753613739690,6.25941759,3833.0,3832.9,2.3464]
[1753613739892,6.25941759,3833.0,3832.9,2.9069]
[1753613740898,6.25941759,3833.0,3832.9,3.9227]
[1753613741498,6.25941759,3833.0,3832.9,5.32251]
[1753613741998,6.25941759,3833.0,3832.9,6.1832]
[1753613742203,6.25941759,3833.0,3832.9,2.3464]
[1753613742394,6.25941759,3833.0,3832.9,6.1832]
[1753613742995,6.25941759,3833.0,3832.9,0.9119]
[1753613743397,6.25941759,3833.0,3832.9,1.43351]
[1753613743698,6.25941759,3833.0,3832.9,6.70481]
[1753613743996,5.9789,3833.0,3832.9,6.70481]
[1753613744296,6.2603246,3833.0,3832.9,6.70481]
[1753613745492,6.2603246,3833.0,3832.9,6.1832]
[1753613746496,6.2603246,3833.0,3832.9,6.70481]
[1753613746694,5.9789,3833.0,3832.9,6.70481]
[1753613747196,3.7294,3833.0,3832.9,6.70481]
[1753613747394,4.5964,3833.0,3832.9,6.70481]
[1753613747595,3.2078,3833.0,3832.9,6.70481]
[1753613747898,3.7294,3833.0,3832.9,6.70481]
[1753613748099,3.2078,3833.0,3832.9,6.70481]
[1753613751293,4.0748,3833.0,3832.9,6.70481]
[1753613751497,5.4573,3833.0,3832.9,6.70481]
[1753613751893,5.9789,3833.0,3832.9,6.70481]
[1753613753104,5.9789,3833.0,3832.9,5.32251]
[1753613754102,5.9789,3833.0,3832.9,3.9227]
[1753613755001,5.9789,3833.0,3832.9,4.44431]
[1753613757403,5.9789,3833.0,3832.9,5.32251]
[1753613758809,5.9789,3833.0,3832.9,4.8009]
[1753613759201,5.9789,3833.0,3832.9,6.092]
[1753613759602,5.9789,3833.0,3832.9,6.61361]
[1753613760810,5.9789,3833.0,3832.9,6.092]
[1753613761612,0.5768,3832.1,3832.0,2.3755]
[1753613761910,5.54762,3832.1,3832.0,5.59692]
[1753613762507,4.30632,3832.1,3832.0,5.59692]
[1753613763311,4.30632,3832.1,3832.0,5.0752]
[1753613763714,4.78372,3832.1,3832.0,5.9381]
[1753613763914,4.30632,3832.1,3832.0,6.45983]
[1753613764312,4.30632,3832.1,3832.0,5.9381]
[1753613764508,4.30632,3832.1,3832.0,6.45983]
[1753613765317,4.30632,3832.1,3832.0,5.9381]
[1753613765714,5.54762,3832.1,3832.0,5.9381]
[1753613766910,0.52176,3831.8,3831.7,4.5295]
[1753613767113,0.52176,3831.8,3831.5,2.2715]
[1753613767114,1.86249,3831.6,3831.5,2.2715]
[1753613767415,6.42939,3831.6,3831.5,5.9381]
[1753613768412,6.42939,3831.6,3831.5,2.2715]
[1753613769013,6.42939,3831.6,3831.5,3.7984]
[1753613769220,3.22163,3831.3,3831.2,1.4449]
[1753613769517,2.34,3830.8,3830.7,3.7841]
[1753613769714,5.0259,3830.8,3830.7,5.9381]
[1753613769916,3.2078,3830.8,3830.7,6.46001]
[1753613770118,4.3065,3830.8,3830.7,5.9381]
[1753613770316,6.4295,3830.8,3830.7,4.647]
[1753613770514,4.3065,3830.8,3830.7,5.9381]
[1753613770709,3.2078,3830.8,3830.7,6.46001]
[1753613771115,3.7846,3831.3,3831.2,6.45993]
[1753613771617,4.30643,3831.3,3831.2,6.45993]
[1753613771813,5.54773,3831.3,3831.2,5.9381]
[1753613772116,5.54773,3831.3,3831.2,6.45994]
[1753613772318,6.42943,3831.3,3831.2,5.9381]
[1753613772814,4.78383,3831.3,3831.2,6.45994]
[1753613773017,3.7846,3831.3,3831.2,6.45994]
[1753613773321,3.2078,3831.3,3831.2,6.45994]
[1753613774021,3.72963,3831.3,3831.2,6.45994]
[1753613774223,5.54773,3831.3,3831.2,5.9381]
[1753613774717,5.54773,3831.3,3830.9,5.9381]
[1753613774718,2.33997,3831.0,3830.9,5.9381]
[1753613774913,2.34002,3830.6,3830.5,5.9381]
[1753613775117,6.42952,3830.6,3830.5,4.647]
[1753613776421,3.2078,3830.6,3830.5,6.46004]
[1753613776615,3.72972,3830.6,3830.5,5.9381]
[1753613776815,5.54782,3830.6,3830.5,5.9381]
[1753613777425,6.42952,3830.6,3830.5,4.647]
[1753613778225,5.54782,3830.6,3830.5,6.46004]
[1753613778417,3.2078,3830.6,3830.5,6.46004]
[1753613778616,5.07042,3830.6,3830.5,5.9381]
[1753613778925,6.42952,3830.6,3830.5,5.9381]
[1753613779528,6.42952,3830.6,3830.5,4.647]
[1753613779727,6.42952,3830.6,3830.5,5.16894]
[1753613779927,6.42952,3830.6,3830.5,6.46004]
[1753613780426,5.54782,3830.6,3830.5,5.9381]
[1753613781525,3.2078,3830.6,3830.5,6.46004]
[1753613783831,3.7846,3830.6,3830.5,6.46004]
[1753613784029,4.262,3830.6,3830.5,6.46004]
[1753613784229,4.78392,3830.6,3830.5,6.46004]
[1753613784430,4.262,3830.6,3830.5,6.46004]
[1753613784732,3.2078,3830.6,3830.5,6.46004]
[1753613785532,4.30652,3830.6,3830.5,6.46004]
[1753613785927,5.54782,3830.6,3830.5,6.46004]
[1753613786733,5.54782,3830.6,3830.5,5.9381]
[1753613787033,6.42952,3830.6,3830.5,6.46004]
[1753613787332,5.0259,3830.6,3830.5,6.46004]
[1753613788429,5.54782,3830.6,3830.5,6.46004]
[1753613789031,6.45912,3830.6,3830.5,4.647]
[1753613789232,6.45912,3830.6,3830.5,5.16894]
[1753613789827,6.45912,3830.6,3830.5,0.52194]
[1753613790330,3.28386,3830.5,3830.4,2.96714]
[1753613790533,3.28386,3830.5,3830.4,2.4452]
[1753613791331,3.28386,3830.5,3829.3,3.2078]
[1753613791332,0.4774,3830.3,3829.3,3.2078]
[1753613791534,0.52222,3828.5,3828.1,3.18546584]
[1753613791827,3.2078,3828.3,3828.2,2.46348512]
[1753613792033,3.73004,3828.3,3828.2,0.01828512]
[1753613792236,0.52229,3827.9,3827.8,0.19332001]
[1753613792436,3.73009,3827.9,3827.8,0.19332001]
[1753613793930,3.2078,3827.9,3827.8,3.89052001]
[1753613794131,3.73009,3827.9,3827.8,2.63852001]
[1753613794338,3.73009,3827.9,3827.8,0.19332001]
[1753613797041,3.73009,3827.9,3827.8,3.89052001]
[1753613797238,3.2078,3827.9,3827.8,3.89052001]
[1753613797741,3.2078,3827.9,3827.8,1.10962001]
[1753613797938,3.73009,3827.9,3827.8,1.10962001]
[1753613798143,3.73009,3827.9,3827.8,3.89052001]
[1753613798340,12.5348,3827.9,3825.8,3.40122107]
[1753613798539,12.5348,3827.9,3825.2,0.01829946]
[1753613798540,3.2078,3825.9,3825.2,0.01829946]
[1753613798741,3.2078,3825.3,3825.2,0.93459946]
[1753613798937,3.2078,3825.3,3825.2,3.71549946]
[1753613799137,3.73045,3825.3,3825.2,3.71549946]
[1753613799542,3.73045,3825.3,3825.2,2.46349946]
[1753613799843,3.2078,3825.3,3825.2,3.71549946]
[1753613800241,3.2078,3825.3,3825.2,4.23815946]
[1753613800837,3.2078,3825.3,3825.2,3.71549946]
[1753613801143,3.2078,3825.3,3825.2,2.46349946]
[1753613801543,3.2078,3825.3,3825.2,2.98615946]
[1753613802033,3.2078,3825.3,3825.2,4.23815946]
[1753613802439,3.73045,3825.3,3825.2,0.93459946]
[1753613803443,3.2078,3825.3,3825.2,0.93459946]
[1753613803640,3.73045,3825.3,3825.2,0.93459946]
[1753613803944,3.73045,3825.3,3825.2,2.46349946]
[1753613805339,3.73045,3825.3,3825.2,0.93459946]
[1753613805946,3.73045,3825.3,3825.2,2.46349946]
[1753613808045,3.73045,3825.3,3825.2,3.71549946]
[1753613808741,3.73045,3825.3,3825.2,0.93459946]
[1753613810743,3.73045,3825.3,3825.2,3.71549946]
[1753613811639,3.2078,3825.3,3825.2,4.23815946]
[1753613813839,3.73045,3825.3,3825.2,4.23815946]
[1753613815648,3.2078,3825.3,3825.2,4.23815946]
[1753613815953,3.73045,3825.3,3825.2,4.23815946]
[1753613817048,3.2078,3825.3,3825.2,4.23815946]
[1753613817447,3.94720188,3825.3,3825.2,4.23815946]
[1753613817948,2.55750188,3825.3,3825.2,4.23815946]
[1753613818150,0.0045,3826.4,3825.4,4.20933]
[1753613818151,3.2078,3825.5,3825.4,4.20933]
[1753613818446,1.40942838,3826.4,3825.9,2.76395]
[1753613818447,0.52256,3826.0,3825.9,2.76395]
[1753613818647,1.30623,3826.5,3825.3,1.30662]
[1753613818648,4.61272838,3826.5,3826.4,0.5225]
[1753613818853,1.40492838,3826.6,3826.5,1.96778]
[1753613819051,0.25863676,3826.6,3826.5,1.4453]
[1753613819248,1.40492838,3826.7,3826.6,0.52247]
[1753613819450,1.39142174,3826.7,3826.6,4.20917]
[1753613820151,1.39142174,3826.9,3826.8,2.84404]
[1753613820350,1.39142174,3826.9,3826.8,4.20914]
[1753613820351,0.25565379,3826.9,3826.8,4.20914]
[1753613820953,0.25565379,3826.9,3826.8,7.41694]
[1753613821557,0.52234,3827.6,3826.9,3.6867]
[1753613821751,0.52234,3827.6,3827.3,0.52237]
[1753613821949,0.52235,3827.5,3827.4,3.6867]
[1753613822144,1.43231,3827.0,3826.9,4.20913]
[1753613822344,0.9099,3827.0,3826.9,4.20913]
[1753613822755,0.52238,3827.3,3827.2,3.6867]
[1753613822954,3.73016,3827.5,3827.4,3.6867]
[1753613823149,1.43226,3827.5,3827.4,3.6867]
[1753613824250,4.14236,3827.5,3827.4,2.8104]
[1753613824450,4.14236,3827.5,3827.3,0.52237]
[1753613824451,3.62,3827.6,3826.8,2.2414]
[1753613824659,3.2078,3827.1,3827.0,1.39871]
[1753613824956,0.52237,3827.4,3827.3,4.20907]
[1753613825947,4.14235,3827.5,3827.4,3.33275]
[1753613826858,3.62,3827.5,3827.4,4.20905]
[1753613827058,1.43225,3827.5,3827.4,4.20905]
[1753613827659,0.52234,3827.6,3827.5,2.76373]
[1753613827857,0.52234,3827.6,3827.5,4.20903]
[1753613828360,4.14234,3827.6,3827.5,1.88745]
[1753613828549,4.14234,3827.6,3827.5,0.52235]
[1753613829158,4.14234,3827.6,3827.5,1.88745]
[1753613829561,4.14234,3827.6,3827.5,4.20905]
[1753613830064,4.88580838,3827.6,3827.5,4.20905]
[1753613830358,7.31380838,3827.6,3827.5,6.65975]
[1753613830556,0.74346838,3827.6,3827.3,0.6068]
[1753613830759,6.57036,3827.4,3827.3,0.6068]
[1753613830959,7.31382838,3827.4,3827.3,1.99337]
[1753613831161,7.31382838,3827.4,3827.3,3.8158]
[1753613831460,6.79146838,3827.4,3826.9,1.4453]
[1753613831652,4.38083,3827.0,3826.9,3.84941]
[1753613831954,5.12429838,3827.0,3826.9,3.84941]
[1753613832154,5.12429838,3827.0,3826.9,6.65981]
[1753613834357,7.31389838,3827.0,3826.9,6.65981]
[1753613835458,6.57043,3827.0,3826.9,6.65981]
[1753613835958,6.57043,3827.0,3826.9,5.78351]
[1753613836764,6.57043,3827.0,3826.9,6.65981]
[1753613837366,6.57043,3827.0,3826.3,1.4453]
[1753613837367,6.048,3827.0,3826.3,1.4453]
[1753613837557,6.8609,3826.7,3826.6,1.8439]
[1753613837763,4.7204,3826.7,3826.6,6.65987]
[1753613837961,3.2078,3826.7,3826.6,6.65987]
[1753613838267,3.73026,3826.7,3826.6,6.65987]
[1753613838466,2.1841,3827.5,3827.0,6.1374]
[1753613838770,2.00185,3827.5,3827.4,6.1374]
[1753613838970,2.74510755,3827.5,3827.4,6.1374]
[1753613839169,4.60350755,3827.5,3827.4,6.1374]
[1753613839372,7.31360755,3827.5,3827.4,6.65976]
[1753613839870,7.31360755,3827.5,3827.4,5.2611]
[1753613840067,0.52237,3827.3,3827.2,1.12918]
[1753613840263,7.31362755,3827.3,3827.2,3.8158]
[1753613840464,7.31362755,3827.3,3827.2,5.2611]
[1753613840964,0.52242,3827.2,3827.1,0.52239]
[1753613841161,10.52199397,3827.2,3827.1,5.2611]
[1753613841566,7.31453195,3827.2,3827.1,5.7835]
[1753613841764,7.31452542,3827.2,3827.1,5.2611]
[1753613842064,7.31452542,3827.2,3827.1,2.4507]
[1753613842274,6.57041,3827.0,3826.9,1.471]
[1753613842472,6.57041,3827.0,3826.9,2.4507]
[1753613842772,7.3148689,3827.0,3826.9,5.78353]
[1753613843366,4.6047689,3827.0,3826.9,6.65983]
[1753613843564,2.03501,3827.0,3826.9,6.65983]
[1753613843760,5.1381,3827.0,3826.3,2.8104]
[1753613843959,5.2963,3826.4,3826.3,6.1374]
[1753613844665,6.5705,3826.4,3826.3,6.1374]
[1753613845269,0.52255,3826.0,3825.9,5.1577]
[1753613845466,3.86045,3826.0,3825.9,6.1374]
[1753613845671,6.57055,3826.0,3825.9,6.1374]
[1753613846968,0.52258,3825.8,3825.7,1.4453]
[1753613847166,4.38651,3825.6,3825.5,4.6921]
[1753613847375,5.29641,3825.6,3825.5,6.66002]
[1753613847868,3.86051,3825.6,3825.5,6.66002]
[1753613848372,6.68201,3825.6,3825.5,0.8642]
[1753613848575,6.60145,3825.3,3825.2,0.93819946]
[1753613848873,6.60145,3825.3,3825.2,0.01829946]
[1753613849468,6.60145,3825.3,3825.2,9.46e-06]
[1753613849673,6.60145,3825.3,3825.2,6.09830946]
[1753613849978,6.60145,3825.3,3825.2,5.20690946]
[1753613850271,2.92985,3825.3,3825.2,9.46e-06]
[1753613851971,5.75135,3825.3,3825.2,2.96466946]
[1753613852277,5.75135,3825.3,3825.2,6.62096946]
[1753613852471,1.5277,3825.6,3825.5,0.52261]
[1753613852665,1.5277,3825.6,3825.5,6.62091]
[1753613852666,4.43781,3825.6,3825.5,6.62091]
[1753613852974,3.9152,3825.6,3825.5,6.62091]
[1753613853575,3.2078,3825.8,3825.7,3.7188]
[1753613853877,3.7848,3825.8,3825.7,6.0983]
[1753613854780,3.2078,3825.8,3825.7,6.62089]
[1753613855972,3.73038,3825.8,3825.7,6.62089]
[1753613856181,0.52265,3825.3,3825.2,9.46e-06]
[1753613856372,3.73045,3825.3,3825.2,9.46e-06]
[1753613858273,8.73045,3825.3,3825.2,9.46e-06]
[1753613858472,9.4760631,3825.3,3825.2,9.46e-06]
[1753613859868,0.52284,3823.9,3823.8,1.2768017]
[1753613860182,3.73064,3823.9,3823.8,1.7e-06]
[1753613860373,0.52297,3822.9,3822.8,3.2078]
[1753613860567,0.52302,3822.6,3822.5,2.7649]
[1753613860775,0.52302,3822.6,3822.5,3.6563]
[1753613860974,0.52302,3822.6,3822.5,8.6563]
[1753613861378,0.52302,3822.6,3822.5,3.6563]
[1753613861881,0.52302,3822.6,3822.5,8.6563]
[1753613862082,0.8501,3823.0,3822.6,3.6563]
[1753613862379,0.52302,3822.6,3822.5,0.52302]
[1753613862578,1.37316,3822.3,3822.2,2.78321382]
[1753613862772,4.19466,3822.3,3822.2,0.01831382]
[1753613863174,4.19471,3821.9,3821.8,0.19362351]
[1753613863370,4.19471,3821.9,3819.7,37.652]
[1753613863371,0.5233,3820.6,3820.4,3.2078]
[1753613863573,0.8501,3821.1,3820.5,2.7649]
[1753613863780,1.5374,3821.5,3820.8,7.38736]
[1753613864077,3.6716,3820.9,3820.8,3.2078]
[1753613864377,0.8501,3820.9,3820.8,6.8641]
[1753613864569,2.8215,3821.3,3820.8,3.2078]
[1753613864774,0.52316,3821.6,3821.3,2.90269]
[1753613864969,0.52319,3821.4,3821.1,3.2078]
[1753613865174,1.5374,3821.1,3819.8,0.19372488]
[1753613865372,3.1273,3819.9,3819.8,0.19372488]
[1753613865579,6.85849,3819.9,3819.8,0.19372488]
[1753613865975,0.52347,3819.3,3819.2,0.02806821]
[1753613866181,6.85857,3819.3,3819.2,0.02806821]
[1753613866781,6.85857,3819.3,3819.2,1.30486821]
[1753613866973,6.85857,3819.3,3819.2,0.02806821]
[1753613867376,6.85857,3819.3,3817.8,0.19382637]
[1753613867377,3.2078,3819.3,3818.0,2.3795]
[1753613867580,3.2078,3819.3,3817.8,0.19382637]
[1753613867581,3.65096,3817.9,3817.8,0.19382637]
[1753613869482,3.65096,3817.9,3817.8,6.37e-06]
[1753613870580,3.1273,3817.9,3816.6,1.93716]
[1753613870784,2.91143,3815.9,3815.8,5.7e-07]
[1753613870988,2.91143,3815.9,3815.3,0.8914]
[1753613870989,0.52398,3815.6,3815.5,0.70076057]
[1753613871186,0.52398,3815.6,3814.5,3.2078]
[1753613871187,0.52411,3814.6,3814.5,3.2078]
[1753613871379,0.52418,3814.1,3814.0,3.2078]
[1753613871580,0.52414,3814.4,3813.8,3.40182966]
[1753613871782,3.2078,3815.2,3814.4,1.4881]